Department Family,Entity,Date Paid,Expense Type,Expense Area,Supplier Name,Transaction Reference,    Total    
Department of Health,Chelsea & Westminster NHS Foundation Trust,01/08/2023,Agency Nurse - Band 5,Chelsea Site,Care Providers Ltd,CH4800,"157,100.14"
Department of Health,Chelsea & Westminster NHS Foundation Trust,01/08/2023,Agency Nurse - Band 5,Chelsea Site,Care Providers Ltd,CH4093,"127,605.43"
Department of Health,Chelsea & Westminster NHS Foundation Trust,01/08/2023,Agency Nurse - Band 5,Chelsea Site,Care Providers Ltd,CH4497,"116,131.26"
Department of Health,Chelsea & Westminster NHS Foundation Trust,01/08/2023,Agency Nurse - Band 5,Chelsea Site,Care Providers Ltd,CH4247,"109,917.70"
Department of Health,Chelsea & Westminster NHS Foundation Trust,01/08/2023,Agency Nurse - Band 5,Chelsea Site,Care Providers Ltd,CH4424,"116,273.26"
Department of Health,Chelsea & Westminster NHS Foundation Trust,01/08/2023,Refurbishment,Chelsea Site,Ensigna Construction Ltd,5908,"237,780.00"
Department of Health,Chelsea & Westminster NHS Foundation Trust,01/08/2023,M.S.S.E. - Routine Purchases,Dermatology Management,Id Medical Group Limited,1079,"34,095.00"
Department of Health,Chelsea & Westminster NHS Foundation Trust,01/08/2023,Recharges � Pay and non-pay costs,Cardiology Management,Royal Brompton & Harefield Nhs Ft,I0211463,"29,148.58"
Department of Health,Chelsea & Westminster NHS Foundation Trust,01/08/2023,Services From Non Nhs Org,Emergency Department,Royal Borough Of Kensington And Chelsea,3660082600,"39,447.16"
Department of Health,Chelsea & Westminster NHS Foundation Trust,01/08/2023,Services From Non Nhs Org,Emergency Department,Royal Borough Of Kensington And Chelsea,3660082598,"34,888.90"
Department of Health,Chelsea & Westminster NHS Foundation Trust,01/08/2023,Services From Non Nhs Org,Service Level Agreements,Royal Borough Of Kensington And Chelsea,3660082601,"60,821.10"
Department of Health,Chelsea & Westminster NHS Foundation Trust,01/08/2023,Services From Non Nhs Org,Service Level Agreements,Royal Borough Of Kensington And Chelsea,3660082599,"51,883.88"
Department of Health,Chelsea & Westminster NHS Foundation Trust,01/08/2023,Drugs,West Middlesex Pharmacy,Csl Behring Uk Ltd,994057958,"61,296.26"
Department of Health,Chelsea & Westminster NHS Foundation Trust,01/08/2023,Clinical Supplies,Divisional Areas,Nhs Supply Chain Roarp (101),1124067516,"87,871.24"
Department of Health,Chelsea & Westminster NHS Foundation Trust,01/08/2023,Clinical Supplies,Divisional Areas,Nhs Supply Chain Roarp (101),1124068444,"148,037.43"
Department of Health,Chelsea & Westminster NHS Foundation Trust,01/08/2023,Clinical Supplies,Divisional Areas,Nhs Supply Chain Roarp (101),1124073636,"53,759.31"
Department of Health,Chelsea & Westminster NHS Foundation Trust,01/08/2023,Telephone Rental-Computer,Trust-wide,Bt Payment Services Ltd,P73936770M03201,"40,057.15"
Department of Health,Chelsea & Westminster NHS Foundation Trust,01/08/2023,Equipment Expenditure,Trust-wide,Imperial College Healthcare Nhs Trust,H0316809,"615,804.00"
Department of Health,Chelsea & Westminster NHS Foundation Trust,01/08/2023,M.R.I. Scans,Radiology:- Other Scanning,Alliance Medical Limited,AML-217824,"196,719.84"
Department of Health,Chelsea & Westminster NHS Foundation Trust,03/08/2023,Aseptic Suite Decoration,Chelsea Site,Ensigna Construction Ltd,5843,"38,760.00"
Department of Health,Chelsea & Westminster NHS Foundation Trust,03/08/2023,Services From Non Nhs Org,Sexual Health - Sutton,The Doctors Laboratory,SI1615913,"124,270.06"
Department of Health,Chelsea & Westminster NHS Foundation Trust,03/08/2023,Drugs,Chelsea Pharmacy,Alloga Uk Limited,SIN103839143,"36,000.00"
Department of Health,Chelsea & Westminster NHS Foundation Trust,03/08/2023,Drugs,Chelsea Pharmacy,Csl Behring Uk Ltd,994058133,"61,296.30"
Department of Health,Chelsea & Westminster NHS Foundation Trust,03/08/2023,Clinical Supplies,Divisional Areas,Nhs Supply Chain Roarp (101),1124095477,"52,153.47"
Department of Health,Chelsea & Westminster NHS Foundation Trust,03/08/2023,Clinical Supplies,Divisional Areas,Nhs Supply Chain Roarp (101),1124092569,"141,837.49"
Department of Health,Chelsea & Westminster NHS Foundation Trust,03/08/2023,Clinical Supplies,Divisional Areas,Nhs Supply Chain Roarp (101),1124090019,"95,494.66"
Department of Health,Chelsea & Westminster NHS Foundation Trust,03/08/2023,Clinical Supplies,Divisional Areas,Nhs Supply Chain Roarp (101),1124095437,"27,862.87"
Department of Health,Chelsea & Westminster NHS Foundation Trust,03/08/2023,It Shared Service,Ict - Shared Services Project,Bytes Software Services Ltd,1130793,"224,894.88"
Department of Health,Chelsea & Westminster NHS Foundation Trust,03/08/2023,Intangible Expenditure,Trust-wide,Cdw Limited,UKSI04008615,"81,801.60"
Department of Health,Chelsea & Westminster NHS Foundation Trust,03/08/2023,Equipment Expenditure,Trust-wide,Anetic Aid,323742,"82,842.05"
Department of Health,Chelsea & Westminster NHS Foundation Trust,03/08/2023,Equipment Expenditure,Trust-wide,Anetic Aid,323778,"51,776.28"
Department of Health,Chelsea & Westminster NHS Foundation Trust,03/08/2023,Equipment Expenditure,Trust-wide,Anetic Aid,323780,"31,065.77"
Department of Health,Chelsea & Westminster NHS Foundation Trust,03/08/2023,Equipment Expenditure,Trust-wide,Anetic Aid,323781,"31,065.77"
Department of Health,Chelsea & Westminster NHS Foundation Trust,03/08/2023,Recharges � Pay and non-pay costs,Trust-wide,Imperial College Healthcare Nhs Trust,H0316325,"176,525.45"
Department of Health,Chelsea & Westminster NHS Foundation Trust,03/08/2023,Soft Service Contract,Trust-wide,Healthcare Business Solutions (Uk) Ltd,2737,"72,600.00"
Department of Health,Chelsea & Westminster NHS Foundation Trust,03/08/2023,M.R.I. Scans,Radiology:- Other Scanning,Alliance Medical Limited,AML-217971,"25,186.01"
Department of Health,Chelsea & Westminster NHS Foundation Trust,04/08/2023,General Maintenance Contracts,Wm - Cancer Services,Somerset Nhs Foundation Trust,1400009311,"60,822.00"
Department of Health,Chelsea & Westminster NHS Foundation Trust,08/08/2023,Agency Nurse - Band 5,Chelsea Site,Care Providers Ltd,CH4873,"129,500.61"
Department of Health,Chelsea & Westminster NHS Foundation Trust,08/08/2023,Drugs,Hiv Drugs - Herts,West Hertfordshire Hospitals Nhs Trust,0000277058,"343,802.84"
Department of Health,Chelsea & Westminster NHS Foundation Trust,08/08/2023,M.S.S.E. - Routine Purchases,Itu/Hdu,Medaphor Ltd,SI-00000815,"26,460.00"
Department of Health,Chelsea & Westminster NHS Foundation Trust,08/08/2023,Other Printing,I.T Management,Hp Inc. Uk Limited,8206526,"26,056.44"
Department of Health,Chelsea & Westminster NHS Foundation Trust,08/08/2023,Drugs,Chelsea Pharmacy,Alliance Healthcare (Distribution ) Ltd,A37B55308,"25,378.94"
Department of Health,Chelsea & Westminster NHS Foundation Trust,08/08/2023,Drugs,West Middlesex Pharmacy,Alloga Uk Limited,SIN103842915,"36,000.00"
Department of Health,Chelsea & Westminster NHS Foundation Trust,08/08/2023,Telephone Rental-Computer,Trust-wide,Bt Payment Services Ltd,P73936770M03401,"41,957.18"
Department of Health,Chelsea & Westminster NHS Foundation Trust,08/08/2023,Transport ,Trust-wide,Hats Group Ltd,0000224711,"34,369.32"
Department of Health,Chelsea & Westminster NHS Foundation Trust,08/08/2023,Managed Service Contract,Cardiac Cath Lab,Medtronic Limited,1205528474,"176,341.18"
Department of Health,Chelsea & Westminster NHS Foundation Trust,08/08/2023,Rent Rates & Service Charge,36-38 Dean Street,Dj Lawson And Partners Llp Client Account,4036,"81,436.42"
Department of Health,Chelsea & Westminster NHS Foundation Trust,10/08/2023,Building Expenditure,Chelsea Site,Jca Engineering Limited,INV36162,"54,693.60"
Department of Health,Chelsea & Westminster NHS Foundation Trust,10/08/2023,Building Expenditure,Chelsea Site,Jca Engineering Limited,INV36174,"126,996.00"
Department of Health,Chelsea & Westminster NHS Foundation Trust,10/08/2023,Computer Maintenance Contracts,Radiology,Sectra Ltd,SIN005722,"109,997.10"
Department of Health,Chelsea & Westminster NHS Foundation Trust,10/08/2023,Electricty,Trust-wide,Edf Energy 1 Ltd,000016006618,"452,220.00"
Department of Health,Chelsea & Westminster NHS Foundation Trust,10/08/2023,General Computer Software,Radiology Department,Sectra Ltd,SIN005723,"70,005.60"
Department of Health,Chelsea & Westminster NHS Foundation Trust,10/08/2023,General Maintenance Contracts,Trust-wide,Jca Engineering Limited,INV-N10162,"468,634.88"
Department of Health,Chelsea & Westminster NHS Foundation Trust,10/08/2023,Transport ,Trust-wide,Hats Group Ltd,0000224809,"170,873.16"
Department of Health,Chelsea & Westminster NHS Foundation Trust,10/08/2023,Transport ,Trust-wide,Hats Group Ltd,0000224810,"36,745.52"
Department of Health,Chelsea & Westminster NHS Foundation Trust,10/08/2023,Transport ,Trust-wide,Hats Group Ltd,0000224811,"70,352.16"
Department of Health,Chelsea & Westminster NHS Foundation Trust,10/08/2023,Drugs,Chelsea Pharmacy,Bayer Plc,824C505042,"36,498.24"
Department of Health,Chelsea & Westminster NHS Foundation Trust,10/08/2023,Drugs,West Middlesex Pharmacy,Roche Products Ltd,1322291923,"27,815.88"
Department of Health,Chelsea & Westminster NHS Foundation Trust,10/08/2023,Clinical Supplies,Divisional Areas,Nhs Supply Chain Roarp (101),1124096532,"154,046.84"
Department of Health,Chelsea & Westminster NHS Foundation Trust,10/08/2023,Clinical Supplies,Divisional Areas,Nhs Supply Chain Roarp (101),1124102396,"39,023.89"
Department of Health,Chelsea & Westminster NHS Foundation Trust,10/08/2023,Clinical Supplies,Divisional Areas,Nhs Supply Chain Roarp (101),1124098317,"97,447.33"
Department of Health,Chelsea & Westminster NHS Foundation Trust,10/08/2023,Clinical Supplies,Divisional Areas,Nhs Supply Chain Roarp (101),1124102356,"28,121.09"
Department of Health,Chelsea & Westminster NHS Foundation Trust,10/08/2023,It Shared Service,Ict - Shared Services Project,Khipu Networks Ltd,23070,"25,200.00"
Department of Health,Chelsea & Westminster NHS Foundation Trust,10/08/2023,Gas,Trust-wide,Total Gas & Power Ltd,307211140/23,"243,656.27"
Department of Health,Chelsea & Westminster NHS Foundation Trust,10/08/2023,Equipment Expenditure,Trust-wide,Anetic Aid,324142,"134,618.33"
Department of Health,Chelsea & Westminster NHS Foundation Trust,10/08/2023,Recharges � Pay and non-pay costs,Cerner Project,Imperial College Healthcare Nhs Trust,H0316467,"32,524.00"
Department of Health,Chelsea & Westminster NHS Foundation Trust,11/08/2023,Drugs,Chelsea Pharmacy,Cw Medicines Ltd,N0055259,"1,164,484.82"
Department of Health,Chelsea & Westminster NHS Foundation Trust,14/08/2023,M.S.S.E. - Routine Purchases,Oral Surgery Department,Portland Clinical Ltd,1901,"26,227.80"
Department of Health,Chelsea & Westminster NHS Foundation Trust,14/08/2023,M.S.S.E. - Routine Purchases,Oral Surgery Department,Portland Clinical Ltd,1898,"28,091.70"
Department of Health,Chelsea & Westminster NHS Foundation Trust,14/08/2023,M.S.S.E. - Routine Purchases,Oral Surgery Department,Portland Clinical Ltd,1897,"31,600.80"
Department of Health,Chelsea & Westminster NHS Foundation Trust,15/08/2023,Agency Nurse - Band 5,Chelsea Site,Care Providers Ltd,CH4938,"130,171.78"
Department of Health,Chelsea & Westminster NHS Foundation Trust,15/08/2023,Computer Maintenance Contracts,Applications Team,Clinisys Solutions Ltd,INV34212301115,"55,862.53"
Department of Health,Chelsea & Westminster NHS Foundation Trust,15/08/2023,Computer Maintenance Contracts,Applications Team,Clinisys Solutions Ltd,INV34212301116,"41,682.73"
Department of Health,Chelsea & Westminster NHS Foundation Trust,15/08/2023,M.S.S.E. - Routine Purchases,Trauma & Orthopaedics,Opcare Ltd,OP-SI-051493,"88,022.87"
Department of Health,Chelsea & Westminster NHS Foundation Trust,15/08/2023,M.S.S.E. - Routine Purchases,Trauma & Orthopaedics,Opcare Ltd,OP-SI-051663,"25,205.11"
Department of Health,Chelsea & Westminster NHS Foundation Trust,15/08/2023,Services From Non Nhs Org,General Surgery,Healthshare Diagnostics Ltd,1360138,"79,610.00"
Department of Health,Chelsea & Westminster NHS Foundation Trust,15/08/2023,Drugs,Chelsea Pharmacy,Gilead Sciences Ltd,4410252966,"36,828.00"
Department of Health,Chelsea & Westminster NHS Foundation Trust,15/08/2023,Drugs,West Middlesex Pharmacy,Alloga Uk Limited,SIN103849267,"27,000.00"
Department of Health,Chelsea & Westminster NHS Foundation Trust,15/08/2023,Drugs,West Middlesex Pharmacy,Roche Products Ltd,1322292274,"29,124.00"
Department of Health,Chelsea & Westminster NHS Foundation Trust,15/08/2023,Donations & Subscriptions,Staff Benefits & Well Being,My Family Care,10004157,"62,275.80"
Department of Health,Chelsea & Westminster NHS Foundation Trust,17/08/2023,Rent Rates & Service Charge,Mass Vaccination Roving,Quality Trusted Solutions,64780583,"41,610.60"
Department of Health,Chelsea & Westminster NHS Foundation Trust,17/08/2023,Drugs,Chelsea Pharmacy,Alloga Uk Limited,SIN103854268B,"36,000.00"
Department of Health,Chelsea & Westminster NHS Foundation Trust,17/08/2023,Clinical Supplies,Divisional Areas,Nhs Supply Chain Roarp (101),1124106567,"137,255.66"
Department of Health,Chelsea & Westminster NHS Foundation Trust,17/08/2023,Clinical Supplies,Divisional Areas,Nhs Supply Chain Roarp (101),1124103899,"80,628.22"
Department of Health,Chelsea & Westminster NHS Foundation Trust,17/08/2023,Clinical Supplies,Divisional Areas,Nhs Supply Chain Roarp (101),1124110072,"67,808.41"
Department of Health,Chelsea & Westminster NHS Foundation Trust,17/08/2023,Soft Services,Trust-wide,Iss Mediclean Limited,SI3567871,"83,879.15"
Department of Health,Chelsea & Westminster NHS Foundation Trust,17/08/2023,Equipment Expenditure,Trust-wide,Anetic Aid,324544,"135,047.63"
Department of Health,Chelsea & Westminster NHS Foundation Trust,17/08/2023,Nw London Pathology Contract,Trust-wide,North West London Pathology,H0317104,"87,523.00"
Department of Health,Chelsea & Westminster NHS Foundation Trust,22/08/2023,Building Expenditure,Chelsea Site,Vector Foiltec Ltd,VFINV-0378,"98,243.00"
Department of Health,Chelsea & Westminster NHS Foundation Trust,22/08/2023,Transport ,Trust-wide,Hats Group Ltd,0000225142,"170,873.16"
Department of Health,Chelsea & Westminster NHS Foundation Trust,22/08/2023,Transport ,Trust-wide,Hats Group Ltd,0000225143,"36,745.52"
Department of Health,Chelsea & Westminster NHS Foundation Trust,22/08/2023,Transport ,Trust-wide,Hats Group Ltd,0000225144,"70,352.16"
Department of Health,Chelsea & Westminster NHS Foundation Trust,22/08/2023,Recharges � Pay and non-pay costs,Cardiology Management,Royal Brompton & Harefield Nhs Ft,I0211161,"46,482.04"
Department of Health,Chelsea & Westminster NHS Foundation Trust,22/08/2023,Sexual Health SLA,Hiv - Herts,Central London Community Healthcare Nhs Trust,1000020454,"363,557.11"
Department of Health,Chelsea & Westminster NHS Foundation Trust,22/08/2023,ENT Services,E.N.T. Department,Harrow Health Cic,0000000919,"31,708.92"
Department of Health,Chelsea & Westminster NHS Foundation Trust,22/08/2023,Neyber Financial Wellbeing Ben,Trust-wide,Salary Finance Ltd,SD AUGUST 2023,"30,329.29"
Department of Health,Chelsea & Westminster NHS Foundation Trust,22/08/2023,Soft Services,Trust-wide,Iss Mediclean Limited,SI3567970,"51,352.45"
Department of Health,Chelsea & Westminster NHS Foundation Trust,22/08/2023,Insurance Premiums,Trust-wide,Willis Limited,9GP23/000001PRM,"277,960.48"
Department of Health,Chelsea & Westminster NHS Foundation Trust,22/08/2023,M.R.I. Scans,Radiology:- Other Scanning,Alliance Medical Limited,AML-218533,"77,286.00"
Department of Health,Chelsea & Westminster NHS Foundation Trust,23/08/2023,Drugs,Chelsea Pharmacy,Cw Medicines Ltd,N0055262,"1,385,719.12"
Department of Health,Chelsea & Westminster NHS Foundation Trust,23/08/2023,Dispensing Fee,Pharmacy Outpatients,Cw Medicines Ltd,N0055263,"100,116.24"
Department of Health,Chelsea & Westminster NHS Foundation Trust,24/08/2023,Building Expenditure,Chelsea Site,Guideline Lift Services Ltd,4820950,"240,790.50"
Department of Health,Chelsea & Westminster NHS Foundation Trust,24/08/2023,General Computer Software,I.T Management,Exponential-E Limited,SINV6211899,"33,482.70"
Department of Health,Chelsea & Westminster NHS Foundation Trust,24/08/2023,General Computer Software,E-Rostering,Locum Tap Ltd T/A Patchwork Health,226153,"33,811.20"
Department of Health,Chelsea & Westminster NHS Foundation Trust,24/08/2023,General Maintenance Contracts,Radiology Department,Nhs Supply Chain Maintenance (201),I147623,"33,445.56"
Department of Health,Chelsea & Westminster NHS Foundation Trust,24/08/2023,Minor Works,Trust-wide,Bywest Ltd,INV000084,"41,580.97"
Department of Health,Chelsea & Westminster NHS Foundation Trust,24/08/2023,Nhs Blood Products,Path Central Purchasing,Nhs Blood Transplant,INUK-003400763,"66,397.67"
Department of Health,Chelsea & Westminster NHS Foundation Trust,24/08/2023,Other Expenses,Trust-wide,Imperial College Healthcare Nhs Trust,SINV6226408,"41,856.00"
Department of Health,Chelsea & Westminster NHS Foundation Trust,24/08/2023,Rates & Council Tax,Dean Street Clinic,Westminster City Council,402284754AUG23,"29,260.00"
Department of Health,Chelsea & Westminster NHS Foundation Trust,24/08/2023,Rates & Council Tax,Chelsea Site,Royal Borough Of Kensington And Chelsea,629848928AUG23,"248,444.00"
Department of Health,Chelsea & Westminster NHS Foundation Trust,24/08/2023,Rates & Council Tax,West Middlesex site,London Borough Of Hounslow,921515548AUG23,"106,400.00"
Department of Health,Chelsea & Westminster NHS Foundation Trust,24/08/2023,Service Charge - Core Pfi,Pfi Unitary Payment,Bywest Ltd,INV000081,"2,100,059.45"
Department of Health,Chelsea & Westminster NHS Foundation Trust,24/08/2023,Recharges � Pay and non-pay costs,Trust-wide,Nhs Blood Transplant,INUK-003400864,"74,041.55"
Department of Health,Chelsea & Westminster NHS Foundation Trust,24/08/2023,Services From Non Nhs Org,General Surgery,Healthshare Diagnostics Ltd,INUK-003400663,"38,449.61"
Department of Health,Chelsea & Westminster NHS Foundation Trust,24/08/2023,Services From Non Nhs Org,General Surgery,Healthshare Diagnostics Ltd,INUK-003401289,"37,000.33"
Department of Health,Chelsea & Westminster NHS Foundation Trust,24/08/2023,Services From Non Nhs Org,General Surgery,Healthshare Diagnostics Ltd,INUK-003401338,"45,152.90"
Department of Health,Chelsea & Westminster NHS Foundation Trust,24/08/2023,Services From Non Nhs Org,General Surgery,Healthshare Diagnostics Ltd,26855,"48,882.85"
Department of Health,Chelsea & Westminster NHS Foundation Trust,24/08/2023,Staff Flow Central Account,Candw Balance Sheet,Liaison Financial Services Ltd,18/2023-24,"83,253.96"
Department of Health,Chelsea & Westminster NHS Foundation Trust,24/08/2023,Staff Flow Central Account,Candw Balance Sheet,Liaison Financial Services Ltd,19/2023-24,"76,192.81"
Department of Health,Chelsea & Westminster NHS Foundation Trust,24/08/2023,Staff Flow Central Account,Candw Balance Sheet,Liaison Financial Services Ltd,20/2023-24,"93,816.47"
Department of Health,Chelsea & Westminster NHS Foundation Trust,24/08/2023,Staff Flow Central Account,Candw Balance Sheet,Liaison Financial Services Ltd,21/2023-24,"74,784.88"
Department of Health,Chelsea & Westminster NHS Foundation Trust,24/08/2023,Drugs,Chelsea Pharmacy,Alliance Healthcare (Distribution ) Ltd,73080093,"42,266.03"
Department of Health,Chelsea & Westminster NHS Foundation Trust,24/08/2023,Drugs,Chelsea Pharmacy,Baxter Healthcare Ltd,23204111,"58,944.72"
Department of Health,Chelsea & Westminster NHS Foundation Trust,24/08/2023,Drugs,Chelsea Pharmacy,Gilead Sciences Ltd,53548469S,"67,716.00"
Department of Health,Chelsea & Westminster NHS Foundation Trust,24/08/2023,Drugs,Chelsea Pharmacy,Mawdsley- Brooks & Co Ltd,04298311B,"42,357.00"
Department of Health,Chelsea & Westminster NHS Foundation Trust,24/08/2023,Drugs,West Middlesex Pharmacy,Roche Products Ltd,ND32815530M4,"28,137.60"
Department of Health,Chelsea & Westminster NHS Foundation Trust,24/08/2023,Clinical Supplies,Divisional Areas,Nhs Supply Chain Roarp (101),G-INV431098,"139,130.09"
Department of Health,Chelsea & Westminster NHS Foundation Trust,24/08/2023,Clinical Supplies,Divisional Areas,Nhs Supply Chain Roarp (101),06/5283290,"48,277.50"
Department of Health,Chelsea & Westminster NHS Foundation Trust,24/08/2023,Clinical Supplies,Divisional Areas,Nhs Supply Chain Roarp (101),46280,"87,680.19"
Department of Health,Chelsea & Westminster NHS Foundation Trust,24/08/2023,Clinical Supplies,Divisional Areas,Nhs Supply Chain Roarp (101),04/5284799,"57,085.50"
Department of Health,Chelsea & Westminster NHS Foundation Trust,24/08/2023,Insurance Contributions,Trust-wide,Nhs Resolution C/O Nhs Litigation Authority,1124085156A,"4,103,291.00"
Department of Health,Chelsea & Westminster NHS Foundation Trust,24/08/2023,Soft Services,Trust-wide,Iss Mediclean Limited,INV000072,"2,648,814.59"
Department of Health,Chelsea & Westminster NHS Foundation Trust,24/08/2023,Service Charge - Variation Pfi,Pfi Unitary Payment,Bywest Ltd,INV000082,"558,459.28"
Department of Health,Chelsea & Westminster NHS Foundation Trust,24/08/2023,Translation Services,Trust-wide,Da Languages Ltd,SI3567879,"30,972.92"
Department of Health,Chelsea & Westminster NHS Foundation Trust,24/08/2023,Postage,Clin Admin Management Team,Synertec Ltd,QS354971,"25,457.86"
Department of Health,Chelsea & Westminster NHS Foundation Trust,24/08/2023,Inpatient and Day Case Activity,Radiology Department,Medica Reporting Ltd (Medica Group),3073915868,"90,999.50"
Department of Health,Chelsea & Westminster NHS Foundation Trust,24/08/2023,Equipment Expenditure,Trust-wide,Parity Computers Ltd (T/A Parity Medical),292600,"41,940.00"
Department of Health,Chelsea & Westminster NHS Foundation Trust,24/08/2023,Recharges � Pay and non-pay costs,Clarhc Office,Imperial College London,0000336603,"62,414.36"
Department of Health,Chelsea & Westminster NHS Foundation Trust,24/08/2023,Nw London Pathology Contract,Trust-wide,North West London Pathology,H0318044,"(28,305.00)"
Department of Health,Chelsea & Westminster NHS Foundation Trust,24/08/2023,Nw London Pathology Contract,Trust-wide,North West London Pathology,H0318045,"(27,710.00)"
Department of Health,Chelsea & Westminster NHS Foundation Trust,24/08/2023,Nw London Pathology Contract,Trust-wide,North West London Pathology,H0318041,"(26,711.00)"
Department of Health,Chelsea & Westminster NHS Foundation Trust,24/08/2023,Nw London Pathology Contract,Trust-wide,North West London Pathology,H0318042,"(25,327.00)"
Department of Health,Chelsea & Westminster NHS Foundation Trust,24/08/2023,Nw London Pathology Contract,Trust-wide,North West London Pathology,H0318043,"(28,122.00)"
Department of Health,Chelsea & Westminster NHS Foundation Trust,24/08/2023,Nw London Pathology Contract,Trust-wide,North West London Pathology,8320006481,"2,857,196.00"
Department of Health,Chelsea & Westminster NHS Foundation Trust,24/08/2023,Nw London Pathology Contract,Trust-wide,North West London Pathology,OP/I702673Y23,"31,144.00"
Department of Health,Chelsea & Westminster NHS Foundation Trust,24/08/2023,Soft Services,Trust-wide,Iss Mediclean Limited,64506791,"84,232.25"
Department of Health,Chelsea & Westminster NHS Foundation Trust,24/08/2023,Telephones - Private Circuits,Trust-wide,Imperial College Healthcare Nhs Trust,957482430,"61,100.19"
Department of Health,Chelsea & Westminster NHS Foundation Trust,24/08/2023,Sterile Services Contract,Sterile Services Dept,Ihss Limited,1380003,"37,980.26"
Department of Health,Chelsea & Westminster NHS Foundation Trust,24/08/2023,Insurance Premiums,Trust-wide,Willis Limited,4GP23/000001PRM,"25,241.35"
Department of Health,Chelsea & Westminster NHS Foundation Trust,24/08/2023,Soft Services,Trust-wide,Healthcare Business Solutions (Uk) Ltd,2843,"42,900.00"
Department of Health,Chelsea & Westminster NHS Foundation Trust,24/08/2023,Soft Services,Trust-wide,Iss Mediclean Limited,INV000072,"64,064.16"
Department of Health,Chelsea & Westminster NHS Foundation Trust,24/08/2023,Specialty Registrar Ft (Str1),Hee Income,Royal Free London Nhs Foundation Trust,RI23005114,"148,258.22"
